fUSD/lending_fUSD_20240102
["ID","MTS","AMOUNT","RATE_DAILY","PERIOD"]
[309803363,1704154243128,-150.0,0.00039484,2]
[309803364,1704154243137,-7007.21823283,0.00039489,10]
[309803365,1704154243148,-157.7777,0.00039498,2]
[309803366,1704154243158,-1000.0,0.00039499,10]
[309803367,1704154243167,-7394.16941949,0.00039499,10]
[309803368,1704154243176,-194.92216727,0.00039499,3]
[309803369,1704154243186,-461.79104821,0.00039499,3]
[309803370,1704154243195,-1000.0,0.00039499,10]
[309803371,1704154243204,-500.0,0.000395,2]
[309803372,1704154243213,-150.0,0.00039507,2]
[309803373,1704154243222,-150.0,0.00039508,2]
[309803374,1704154243231,-150.0,0.00039512,2]
[309803375,1704154243241,-249.38709675,0.00039514,3]
[309803376,1704154243250,-302.0,0.00039514,4]
[309803377,1704154243259,-150.0,0.00039526,2]
[309803379,1704154243269,-150.0,0.00039529,2]
[309803381,1704154243278,-258.45300974,0.0003953,2]
[309803383,1704154243287,-150.0,0.00039532,2]
[309803385,1704154243296,-150.0,0.00039537,2]
[309803387,1704154243306,-150.0,0.00039539,2]
[309803389,1704154243315,-175.64,0.00039548,2]
[309803391,1704154243324,-255.6,0.00039548,30]
[309803394,1704154243334,-150.0,0.00039552,2]
[309803395,1704154243343,-1000.0,0.00039554,2]
[309803397,1704154243353,-280.14979655,0.00039558,4]
[309803399,1704154243362,-7007.21823283,0.00039568,10]
[309803401,1704154243371,-150.0,0.00039569,2]
[309803403,1704154243381,-150.0,0.0003957,2]
[309803405,1704154243390,-1000.0,0.0003957,2]
[309803407,1704154243400,-194.40921135,0.0003957,4]
[309803409,1704154243409,-150.0,0.00039572,2]
[309803411,1704154243419,-150.0,0.00039577,2]
[309803413,1704154243428,-3450.6,0.00039577,2]
[309803415,1704154243437,-150.0,0.00039588,2]
[309803417,1704154243446,-150.0,0.00039588,2]
[309803419,1704154243456,-157.7777,0.00039598,2]
[309803421,1704154243465,-1521.0,0.000396,7]
[309803423,1704154243475,-150.0,0.00039602,2]
[309803425,1704154243484,-150.0,0.0003961,2]
[309803427,1704154243493,-150.0,0.0003961,2]
[309803429,1704154243502,-150.0,0.00039617,2]
[309803431,1704154243510,-150.0,0.00039623,2]
[309803433,1704154243519,-150.0,0.00039624,2]
[309803435,1704154243528,-150.0,0.00039636,2]
[309803437,1704154243537,-150.0,0.00039641,2]
[309803439,1704154243547,-150.0,0.00039661,2]
[309803441,1704154243556,-150.0,0.00039662,2]
[309803443,1704154243565,-150.0,0.00039669,2]
[309803445,1704154243574,-150.0,0.00039677,2]
[309803447,1704154243583,-500.0,0.00039679,2]
[309803449,1704154243593,-150.0,0.0003968,2]
[309803451,1704154243602,-5742.32770844,0.00039684,13]
[309803453,1704154243614,-255.6,0.00039685,30]
[309803455,1704154243624,-150.0,0.00039686,2]
[309803457,1704154243633,-150.0,0.00039688,2]
[309803459,1704154243642,-150.0,0.00039689,2]
[309803461,1704154243653,-150.0,0.0003969,2]
[309803463,1704154243665,-150.0,0.00039697,2]
[309803465,1704154243678,-150.0,0.00039698,2]
[309803467,1704154243687,-500.0,0.00039698,2]
[309803469,1704154243697,-500.0,0.00039698,2]
[309803471,1704154243706,-500.0,0.00039698,2]
[309803473,1704154243716,-500.0,0.00039698,2]
[309803475,1704154243725,-500.0,0.00039698,2]
[309803477,1704154243735,-500.0,0.00039698,2]
[309803479,1704154243744,-500.0,0.00039698,2]
[309803481,1704154243753,-500.0,0.00039698,2]
[309803483,1704154243764,-157.7777,0.00039698,2]
[309803485,1704154243773,-150.0,0.00039704,2]
[309803487,1704154243782,-150.0,0.00039706,2]
[309803489,1704154243791,-150.0,0.00039715,2]
[309803491,1704154243800,-150.0,0.00039722,2]
[309803493,1704154243809,-150.0,0.00039722,2]
[309803495,1704154243818,-163.14,0.00039726,15]
[309803497,1704154243827,-1500.0,0.00039729,2]
[309803499,1704154243836,-150.0,0.0003973,2]
[309803501,1704154243845,-150.0,0.00039736,2]
[309803503,1704154243854,-274.18470334,0.00039741,2]
[309803505,1704154243863,-150.0,0.00039744,2]
[309803507,1704154243872,-407.8483495,0.00039745,2]
[309803509,1704154243882,-150.0,0.00039751,2]
[309803511,1704154243891,-150.0,0.00039753,2]
[309803513,1704154243901,-7007.21823283,0.00039761,10]
[309803515,1704154243910,-2042.4722144,0.00039761,2]
[309803517,1704154243919,-6246.25030522,0.00039761,2]
[309803519,1704154243928,-469.40619324,0.00039767,2]
[309803521,1704154243937,-5633.57075641,0.0003977,10]
[309803582,1704154244491,-316.5217987,0.00039745,2]
[309803584,1704154244503,-739.4398862,0.00039745,2]
[309803588,1704154244528,-135.00894109,0.00039745,2]
[309803590,1704154244537,-1373.64747642,0.0003977,10]
[309803592,1704154244547,-404.14687064,0.00039771,31]
[309803594,1704154244556,-242.25086041,0.00039771,2]
[309803596,1704154244565,-150.0,0.00039774,2]
[309803598,1704154244575,-150.0,0.00039781,2]
[309803600,1704154244584,-500.0,0.00039789,2]
[309803602,1704154244593,-5000.0,0.0003979,2]
[309803604,1704154244602,-157.7777,0.00039798,2]
[309803606,1704154244611,-157.63543977,0.00039799,2]
[309803608,1704154244621,-978.96767631,0.000398,4]
[309803610,1704154244630,-150.0,0.000398,2]
[309803612,1704154244639,-150.0,0.00039803,2]
[309803614,1704154244649,-150.0,0.00039803,2]
[309803616,1704154244658,-150.0,0.00039806,2]
[309803618,1704154244667,-150.0,0.00039811,2]
[309803620,1704154244677,-150.0,0.00039812,2]
[309803623,1704154244687,-150.0,0.00039818,2]
[309803624,1704154244696,-150.0,0.00039821,2]
[309803625,1704154244705,-255.6,0.00039822,30]
[309803626,1704154244714,-7007.21823283,0.00039823,10]
[309803627,1704154244723,-89710.6512922,0.00039831,5]
[309803628,1704154244732,-49050.5276298,0.00039841,10]
[309803629,1704154244741,-150.0,0.00039845,2]
[309803630,1704154244750,-150.0,0.0003985,2]
[309803632,1704154244759,-7007.21823283,0.00039851,10]
[309803634,1704154244769,-42043.309397,0.0003986,10]
[309803636,1704154244779,-151.0,0.00039861,7]
[309803638,1704154244788,-151.0,0.00039861,7]
[309803640,1704154244797,-151.0,0.00039861,7]
[309803642,1704154244807,-417.611589,0.00039861,7]
[309803644,1704154244816,-417.611589,0.00039861,7]
[309803646,1704154244825,-151.0,0.00039861,7]
[309803648,1704154244835,-21021.6546985,0.00039861,10]
[309803650,1704154244844,-38432.90015635,0.00039861,5]
[309803652,1704154244857,-2867.67658341,0.00039861,5]
[309803655,1704154244873,-3289.23876159,0.00039861,5]
[309803657,1704154244885,-510.38064613,0.00039861,5]
[309803660,1704154244903,-4074.13781546,0.00039861,5]
[309803662,1704154244914,-651.54904412,0.00039861,5]
[309803664,1704154244926,-4037.46245154,0.00039861,5]
[309803667,1704154244938,-298.86373547,0.00039861,5]
[309803765,1704154245802,-50000.0,0.00039006,30]
[309803766,1704154245812,-11154.94400002,0.00039861,5]
[309803770,1704154245970,-2207.25,0.00039861,5]
[309803845,1704154246849,-433.25431288,0.00039861,5]
[309803849,1704154246882,-639.95757359,0.00037263,2]
[309803851,1704154246894,-1250.73242641,0.00037263,2]
[309803863,1704154246997,-10012.35793272,0.00039861,5]
[309803866,1704154247009,-3492.20354362,0.00039861,5]
[309803868,1704154247021,-8248.43230889,0.00039861,5]
[309803869,1704154247030,-168.49944388,0.00039867,2]
[309803871,1704154247040,-168.49944388,0.00039867,2]
[309803873,1704154247049,-277.102169,0.0003987,7]
[309803875,1704154247059,-151.0,0.0003987,7]
[309803878,1704154247068,-189.12030878,0.0003987,7]
[309803879,1704154247077,-417.611589,0.0003987,7]
[309803882,1704154247087,-417.611589,0.0003987,7]
[309803884,1704154247096,-151.0,0.0003987,7]
[309803885,1704154247105,-367610.10664345,0.0003987,3]
[309803889,1704154247124,-6492.36069646,0.0003987,3]
[309803891,1704154247136,-5450.76399988,0.0003987,3]
[309803893,1704154247148,-56154.3784506,0.0003987,3]
[309803900,1704154247203,-1176.77830972,0.0003987,3]
[309803919,1704154248927,15655.5159615,0.00018137,2]
[309803920,1704154249620,843.95964549,0.0002,2]
[309803921,1704154252527,267.94181947,0.0002,2]
[309803923,1704154259022,1594.43306986,0.0001451,2]
[309803926,1704154268902,15655.5159615,0.00018137,2]
[309803927,1704154269626,621.4165185,0.0002,2]
[309803928,1704154283033,645.6954279,0.00011608,2]
[309803929,1704154283054,528.89734168,0.00011608,2]
[309803932,1704154290900,11531.85466436,0.0001451,2]
[309803987,1704154511816,544.95302856,0.0001451,7]
[309803990,1704154527778,543.49545339,0.0001451,7]
[309803995,1704154543625,155.0,0.0001451,2]
[309803998,1704154551783,543.49545339,0.0001451,7]
[309803999,1704154553566,297.14981601,0.000185,2]
[309804002,1704154562804,221.95124071,0.0001451,2]
[309804003,1704154562868,165.46285681,0.0001451,2]
[309804006,1704154567127,158.21861741,0.00014509,2]
[309804007,1704154567627,870.97900263,0.00014509,2]
[309804008,1704154568187,360.87448358,0.00014509,2]
[309804009,1704154568932,232.35961305,0.00014509,2]
[309804010,1704154569790,580.24836598,0.0001451,7]
[309804016,1704154709872,724.1468,0.00026898,90]
[309804017,1704154717409,3465.0,0.00023,2]
[309804019,1704155167047,661.15,0.00021294,2]
[309804020,1704155188493,343.68553094,0.00022925,2]
[309804021,1704155204601,-1991.36462531,0.00023018,2]
[309804022,1704155204625,-905.23497751,0.00023018,2]
[309804023,1704155204648,-1702.94991301,0.00023018,2]
[309804024,1704155204670,-360.87448358,0.00023018,2]
[309804025,1704155204693,-1010.3421834,0.00023018,2]
[309804026,1704155204715,-155.0,0.00023018,2]
[309804027,1704155204736,-492.83979718,0.00023019,2]
[309804028,1704155204758,-171.29294843,0.00023019,2]
[309804029,1704155204779,-3612.04475606,0.00023019,2]
[309804030,1704155204801,-2781.05631552,0.00023019,2]
[309804031,1704155217710,492.83979718,0.00022787,2]
[309804032,1704155237711,492.83979718,0.00022783,2]
[309804033,1704155249678,158.91,0.00022782,2]
[309804034,1704155255097,870.97900263,0.0002301,2]
[309804035,1704155256284,42908.82928719,0.0002301,2]
[309804036,1704155256729,155.0,0.0002301,2]
[309804037,1704155257714,492.83979718,0.0002278,2]
[309804038,1704155258427,155.0,0.0002301,2]
[309804039,1704155259554,18948.26672582,0.0002301,2]
[309804040,1704155261299,2891.24890645,0.0002301,2]
[309804041,1704155261378,530.98245295,0.0002301,2]
[309804042,1704155261508,547.58880873,0.0002301,2]
[309804043,1704155262292,310.19714462,0.0002301,2]
[309804044,1704155262318,25852.38677648,0.0002301,2]
[309804045,1704155263795,2605.2545687,0.0002301,2]
[309804046,1704155267020,196.03271932,0.0002301,2]
[309804047,1704155267134,198.22161965,0.0002301,2]
[309804048,1704155268132,937.43506641,0.0002301,2]
[309804049,1704155268258,160.05593525,0.0002301,2]
[309804050,1704155268664,905.23497751,0.0002301,2]
[309804051,1704155268814,155.0,0.0002301,2]
[309804052,1704155269925,18362.29863297,0.0002301,2]
[309804053,1704155270206,1660.23865608,0.0002301,2]
[309804054,1704155272312,17562.28987849,0.0002301,2]
[309804055,1704155272697,171.29294843,0.0002301,2]
[309804056,1704155273086,276.64751883,0.0002301,2]
[309804057,1704155273111,870.97900263,0.0002186,2]
[309804058,1704155273268,227.9,0.00022961,2]
[309804059,1704155275578,1051.35865513,0.0002301,2]
[309804060,1704155275721,492.83979718,0.0002278,2]
[309804061,1704155277689,579.61035159,0.0002301,2]
[309804062,1704155277818,269.83626346,0.0002301,2]
[309804063,1704155278303,284.37652199,0.0002301,2]
[309804064,1704155278729,3663.1679584,0.0002301,2]
[309804065,1704155283607,3612.04475606,0.0002301,2]
[309804066,1704155283714,278.31410173,0.0002301,2]
[309804067,1704155284426,155.0,0.0002301,2]
[309804068,1704155284623,448.3073001,0.0002301,2]
[309804069,1704155285026,155.0,0.0002301,2]
[309804070,1704155285263,7381.96894019,0.0002301,2]
[309804071,1704155285651,1068.84236946,0.0002301,2]
[309804072,1704155286209,36236.6067524,0.0002301,2]
[309804073,1704155286413,1010.3421834,0.0002301,2]
[309804074,1704155287683,259.11941183,0.0002301,2]
[309804075,1704155287708,188.29899494,0.00023009,2]
[309804076,1704155288542,264.54201298,0.00023009,2]
[309804077,1704155288651,365.31581271,0.00023009,2]
[309804078,1704155289027,535.18528918,0.00023009,2]
[309804079,1704155289288,30673.41060785,0.0002301,2]
[309804080,1704155290711,658.1806112,0.0002301,2]
[309804081,1704155291088,870.97900263,0.0002186,2]
[309804082,1704155291119,158.21861741,0.0002301,2]
[309804083,1704155291158,741.19094379,0.00023009,2]
[309804084,1704155292803,523.33575676,0.0002301,2]
[309804085,1704155293187,247.30844327,0.00023009,2]
[309804086,1704155293814,190.49999709,0.0002301,2]
[309804087,1704155295709,482.02611026,0.00022779,2]
[309804088,1704155295967,155.0,0.00023009,2]
[309804089,1704155296295,284.37652199,0.0002301,2]
[309804090,1704155296703,171.29294843,0.0002301,2]
[309804091,1704155296927,225.67368996,0.00022779,2]
[309804092,1704155296971,3316.86540737,0.0002301,2]
[309804093,1704155297470,556.86687449,0.00022894,2]
[309804094,1704155299694,575.77581819,0.0002301,2]
[309804095,1704155299806,182.58341482,0.00023009,2]
[309804096,1704155300035,383.24855968,0.00023009,2]
[309804097,1704155300341,318.08154757,0.00023009,2]
[309804098,1704155300626,233.56810335,0.0002301,2]
[309804099,1704155300959,399.1011347,0.00023009,2]
[309804100,1704155300997,5000.0,0.0002301,2]
[309804101,1704155301125,1612.6519114,0.00023009,2]
[309804102,1704155301497,155.0,0.00023009,2]
[309804103,1704155301610,1245.16909217,0.00023009,2]
[309804104,1704155301716,278.5270981,0.0002301,2]
[309804105,1704155302594,20131.44819578,0.0002301,2]
[309804106,1704155302635,1010.3421834,0.0002301,2]
[309804107,1704155303042,155.0,0.00023009,2]
[309804108,1704155303506,251.99880636,0.00023009,2]
[309804109,1704155303613,3612.04475606,0.0002301,2]
[309804110,1704155303673,155.0,0.0002301,2]
[309804111,1704155304304,11635.2625698,0.00023009,2]
[309804112,1704155304569,229.1236873,0.00022913,2]
[309804113,1704155304673,742.1984686,0.00023009,2]
[309804114,1704155304715,658.1806112,0.0002301,2]
[309804115,1704155305023,155.0,0.0002301,2]
[309804116,1704155305554,155.0,0.00023009,2]
[309804117,1704155305598,155.0,0.00023009,2]
[309804118,1704155305692,156.91582911,0.00023009,2]
[309804119,1704155306551,264.54201298,0.00023009,2]
[309804120,1704155306651,365.31581271,0.00023009,2]
[309804121,1704155307123,157.92794869,0.00023009,2]
[309804122,1704155307149,206.09036939,0.00023009,2]
[309804123,1704155307185,386.16048172,0.00023009,2]
[309804124,1704155307263,3846.00581784,0.00023009,2]
[309804125,1704155307295,1603.81158203,0.00023009,2]
[309804126,1704155309170,870.97900263,0.00021859,2]
[309804127,1704155319477,556.86687449,0.00022894,2]
[309804128,1704155320678,494.79897906,0.00022986,2]
[309804129,1704155327098,870.97900263,0.00021857,2]
[309804130,1704155328837,23900.0,0.00022717,2]
[309804131,1704155331235,-155.0,0.00023007,2]
[309804132,1704155331257,-42908.82928719,0.00023007,2]
[309804133,1704155331278,-399.1011347,0.00023008,2]
[309804134,1704155331300,-155.0,0.00023008,2]
[309804135,1704155331323,-207.600776,0.00023008,2]
[309804136,1704155331344,-155.0,0.00023008,2]
[309804137,1704155331365,-526.38827755,0.00023008,2]
[309804138,1704155331387,-206.09036939,0.00023008,2]
[309804139,1704155331407,-3846.00581784,0.00023008,2]
[309804140,1704155331427,-155.0,0.00023008,2]
[309804141,1704155331447,-264.54201298,0.00023008,2]
[309804142,1704155331468,-386.16048172,0.00023008,2]
[309804143,1704155331488,-155.0,0.00023008,2]
[309804144,1704155331513,-4256.57228959,0.00023008,2]
[309804145,1704155331534,-5706.23288983,0.00023008,2]
[309804146,1704155331556,-556.97440322,0.00023009,2]
[309804147,1704155331581,-248.12804319,0.00023009,2]
[309804148,1704155331602,-569.858,0.00023009,2]
[309804149,1704155331624,-29069.59902582,0.00023009,2]
[309804150,1704155331646,-155.08049869,0.00023009,2]
[309804151,1704155331668,-523.33575676,0.00023009,2]
[309804152,1704155331689,-3313.84452798,0.00023009,2]
[309804153,1704155331711,-445.98774099,0.00023009,2]
[309804154,1704155331732,-212.05436505,0.00023009,2]
[309804155,1704155331755,-840.19164584,0.00023009,2]
[309804156,1704155331777,-155.0,0.00023009,2]
[309804157,1704155331799,-284.37652199,0.00023009,2]
[309804158,1704155331822,-830.11272811,0.00023009,2]
[309804159,1704155331843,-171.29294843,0.00023009,2]
[309804160,1704155331864,-252.70370625,0.00023009,2]
[309804161,1704155331886,-383.24855968,0.00023009,2]
[309804162,1704155331907,-2505.68819121,0.00023009,2]
[309804163,1704155339478,556.86687449,0.00022892,2]
[309804164,1704155342150,155.0,0.00020707,2]
[309804165,1704155342677,412.33248255,0.00022984,2]
[309804166,1704155345108,870.97900263,0.00021857,2]
[309804167,1704155356505,92658.65,0.00023,2]
[309804168,1704155356687,412.33248255,0.00022984,2]
[309804169,1704155359639,556.86687449,0.00022892,2]
[309804170,1704155367096,1020.32768339,0.00021853,2]
[309804171,1704155374685,214.82522341,0.0002298,2]
[309804172,1704155375656,160.42,0.00022565,2]
[309804173,1704155376073,160.42,0.00022695,2]
[309804174,1704155376298,160.42,0.00022826,2]
[309804175,1704155376400,2377.85,0.00022397,2]
[309804176,1704155376534,160.42,0.00022957,2]
[309804177,1704155379489,556.86687449,0.00022888,2]
[309804179,1704155392679,214.82522341,0.00022979,2]
[309804180,1704155393324,310.19714462,0.00023,2]
[309804181,1704155393527,445.98774099,0.00023,2]
[309804182,1704155395479,556.86687449,0.00022885,2]
[309804183,1704155396127,155.0,0.00023,2]
[309804184,1704155398081,165.18468304,0.00023,2]
[309804185,1704155399308,523.33575676,0.00023,2]
[309804186,1704155399679,386.16048172,0.00023,2]
[309804187,1704155400931,526.38827755,0.00023,2]
[309804188,1704155401659,155.0,0.00023,2]
[309804189,1704155404058,196.03271932,0.00023,2]
[309804190,1704155404115,691.76060676,0.00023,2]
[309804191,1704155404192,381.37464108,0.0002291,2]
[309804192,1704155405135,1153.94137876,0.00023,2]
[309804193,1704155405246,171.29294843,0.00023,2]
[309804194,1704155405440,155.0,0.00023,2]
[309804195,1704155405777,3846.00581784,0.00023,2]
[309804196,1704155406421,155.0,0.00023,2]
[309804197,1704155406533,547.58880873,0.00023,2]
[309804198,1704155406858,176.71197087,0.00023,2]
[309804199,1704155407248,3663.1679584,0.00023,2]
[309804200,1704155408202,259.11941183,0.00022999,2]
[309804201,1704155408825,284.37652199,0.00022999,2]
[309804202,1704155408941,10201.27701832,0.00023,2]
[309804203,1704155409306,161.61271235,0.00023,2]
[309804204,1704155409528,445.98774099,0.00023,2]
[309804205,1704155411209,1660.23865608,0.00022999,2]
[309804206,1704155411623,1612.6519114,0.00023,2]
[309804207,1704155411740,155.0,0.00023,2]
[309804208,1704155412313,155.0,0.00022999,2]
[309804209,1704155413306,523.33575676,0.00023,2]
[309804210,1704155414078,165.18468304,0.00023,2]
[309804211,1704155414688,214.82522341,0.00022977,2]
[309804212,1704155415476,556.86687449,0.00022885,2]
[309804213,1704155415656,155.0,0.00023,2]
[309804214,1704155416116,691.76060676,0.00023,2]
[309804215,1704155416817,1051.35865513,0.00023,2]
[309804216,1704155416869,63702.4,0.00023,2]
[309804217,1704155416931,526.38827755,0.00023,2]
[309804218,1704155417290,42908.82928719,0.00023,2]
[309804219,1704155417683,386.16048172,0.00023,2]
[309804220,1704155417825,30673.41060785,0.00023,2]
[309804221,1704155418083,230.53959902,0.00023,2]
[309804222,1704155418212,155.0,0.00023,2]
[309804223,1704155419461,155.0,0.00023,2]
[309804224,1704155419776,309.43022401,0.00023,2]
[309804225,1704155420859,155.0,0.00023,2]
[309804226,1704155421066,264.54201298,0.00023,2]
[309804227,1704155421223,171.29294843,0.00023,2]
[309804228,1704155422069,196.03271932,0.00023,2]
[309804229,1704155422537,547.58880873,0.00023,2]
[309804230,1704155423245,1908.51050633,0.00023,2]
[309804231,1704155423462,399.1011347,0.00023,2]
[309804232,1704155423916,3846.00581784,0.00023,2]
[309804233,1704155424318,155.0,0.00023,2]
[309804234,1704155424947,10201.27701832,0.00023,2]
[309804235,1704155424981,256.13733899,0.00023,2]
[309804236,1704155425689,840.19164584,0.00023,2]
[309804237,1704155426541,458.24737458,0.0002291,2]
[309804238,1704155427091,284.37652199,0.00023,2]
[309804239,1704155427545,232.35961305,0.00023,2]
[309804240,1704155429227,864.98433982,0.00023,2]
[309804241,1704155429746,155.0,0.00023,2]
[309804242,1704155430212,155.0,0.00023,2]
[309804243,1704155430238,155.0,0.00023,2]
[309804244,1704155430684,214.82522341,0.00022977,2]
[309804245,1704155431405,3920.35158571,0.00023,2]
[309804276,1704155431967,-233.56810335,0.00023001,2]
[309804278,1704155431976,-155.0,0.00023001,2]
[309804279,1704155431986,-190.32953842,0.00023001,2]
[309804281,1704155431995,-905.23497751,0.00023001,2]
[309804283,1704155432004,-14362.43709804,0.00023001,2]
[309804285,1704155432014,-11708.19325233,0.00023001,2]
[309804287,1704155432023,-202.35187319,0.00023001,2]
[309804289,1704155432033,-150.0,0.00023001,2]
[309804291,1704155432042,-1281.80027007,0.00023001,2]
[309804293,1704155432051,-20131.44819578,0.00023002,2]
[309804294,1704155432061,-658.1806112,0.00023002,2]
[309804296,1704155432071,-30020.3469268,0.00023004,2]
[309804298,1704155432080,-247.78200174,0.00023007,2]
[309804300,1704155432090,-194.08294825,0.00023007,2]
[309804302,1704155432099,-355.02113899,0.00023007,2]
[309804304,1704155432109,-756.20900926,0.00023007,2]
[309804306,1704155432120,-2535.67641954,0.00023008,2]
[309804308,1704155432129,-2920.59107952,0.00023008,2]
[309804310,1704155432139,-155.0,0.00023009,2]
[309804312,1704155432148,-276.76,0.00023009,2]
[309804314,1704155432160,-465044.55065085,0.0002301,2]
[309804316,1704155432169,-2888.71602637,0.00023011,2]
[309804318,1704155432179,-530.49786083,0.00023011,2]
[309804320,1704155432188,-2380.15552073,0.00023011,2]
[309804322,1704155432198,-182.77537892,0.00023011,2]
[309804324,1704155432208,-624.66515753,0.00023011,2]
[309804326,1704155432217,-159.76703467,0.00023011,2]
[309804328,1704155432227,-5347.33927379,0.00023012,2]
[309804330,1704155432236,-683.16,0.00023015,2]
[309804331,1704155432246,-728.99772454,0.00023018,2]
[309804332,1704155432256,-360.74739267,0.00023018,2]
[309804333,1704155432267,-161.08464285,0.00023018,2]
[309804334,1704155432278,-1121.48148011,0.00023018,2]
[309804335,1704155432287,-299.85361044,0.00023022,2]
[309804337,1704155432297,-9999.99,0.00023026,2]
[309804339,1704155432307,-1182.92,0.00023028,2]
[309804341,1704155432316,-160.42,0.00023087,2]
[309804343,1704155432326,-185.98,0.00023113,2]
[309804345,1704155432335,-160.41,0.00023121,2]
[309804347,1704155432345,-160.42,0.00023218,2]
[309804349,1704155432354,-177.56,0.00023336,10]
[309804351,1704155432364,-160.42,0.00023349,2]
[309804353,1704155432374,-189.11,0.00023356,2]
[309804355,1704155432383,-160.42,0.00023479,2]
[309804357,1704155432392,-661.15,0.00023558,2]
[309804359,1704155432404,-2000.0,0.0002361,2]
[309804361,1704155432413,-160.42,0.0002361,2]
[309804363,1704155432422,-160.42,0.00023741,2]
[309804365,1704155432432,-628.41,0.00023743,2]
[309804366,1704155432442,-189.24,0.00023818,2]
[309804368,1704155432451,-150.0,0.00023844,2]
[309804371,1704155432461,-160.41,0.00023891,2]
[309804373,1704155432471,-429.9439476,0.00024,2]
[309804374,1704155432480,-300.0,0.00024228,2]
[309804376,1704155432489,-250.0,0.00024251,2]
[309804379,1704155432499,-200.0,0.0002428,2]
[309804381,1704155432509,-426.97339494,0.0002434,2]
[309804383,1704155432518,-35497.74,0.0002435,2]
[309804385,1704155432528,-158.62642959,0.00024625,2]
[309804387,1704155432538,-129029.0,0.00024628,2]
[309804390,1704155432547,-160.41,0.00024662,2]
[309804391,1704155432557,-628.41,0.00024722,2]
[309804394,1704155432566,-201.26192443,0.00025,2]
[309804396,1704155432576,-11055.3,0.00025,2]
[309804397,1704155432585,-166.71010626,0.00025,2]
[309804399,1704155432595,-288.15054455,0.00025094,2]
[309804401,1704155432605,-5545.27526573,0.000251,2]
[309804403,1704155432614,-39430.71,0.000251,2]
[309804404,1704155432623,-615.61,0.000251,2]
[309804405,1704155432633,-5271.95766782,0.000251,2]
[309804406,1704155432647,-4470.3002,0.000251,2]
[309804407,1704155432659,-853.71847551,0.000251,2]
[309804408,1704155432672,-852.59213198,0.000251,2]
[309804409,1704155432693,-43717.71152469,0.000251,2]
[309804410,1704155432702,-7826.38392683,0.00025126,2]
[309804411,1704155432714,-320.51153453,0.00025126,2]
[309804412,1704155432726,-999.87426,0.00025126,2]
[309804413,1704155432738,-378.87125839,0.00025126,2]
[309804414,1704155432748,-293.04435743,0.00025169,2]
[309804415,1704155432757,-14.94266729,0.00025269,2]
[309804416,1704155432770,-376.0000009,0.00025269,2]
[309804417,1704155432786,-618.89510195,0.00025269,2]
[309804418,1704155432796,-435.46992932,0.00025271,2]
[309804419,1704155432806,-646.43082082,0.00025271,2]
[309804420,1704155432816,-210.0,0.00025301,2]
[309804421,1704155432825,-160.41,0.00025433,2]
[309804422,1704155432835,-241.4138966,0.0002553,2]
[309804423,1704155432845,-270.26038183,0.00025534,2]
[309804424,1704155432943,-1531.88891434,0.00025535,2]
[309804425,1704155432969,-300.0,0.00025598,2]
[309804426,1704155432979,-150.99,0.0002562,2]
[309804427,1704155432989,-499.99,0.0002562,2]
[309804428,1704155432998,-359.58,0.00025622,2]
[309804429,1704155433007,-3194.56,0.00025636,2]
[309804430,1704155433017,-150.99,0.00025636,2]
[309804431,1704155433026,-628.41,0.000257,2]
[309804432,1704155433035,-661.15,0.00025822,2]
[309804433,1704155433045,-890.0,0.00026,2]